Cogmind - Beta 17 @@@ ROGUE MODE // 2026.08.14 @ 02:39:30 Player: Nerf Result: Destroyed by G-47 Trooper with Particle Gun Performance ------------- Evolutions (1) 500 Regions Visited (6) 1200 Robots Destroyed (22) 110 Value Destroyed (469) 469 Prototype IDs (2) 40 Alien Tech Used (0) 0 Bonus (0) 0 TOTAL SCORE: 2319 Bonus ------- None Cogmind --------- Core Integrity 0/400 Matter 233/300 Energy 100/100 System Corruption 0% Temperature Cool (9) Movement Core (400) Ox7 Location -8/Mines Parts ------- > --- POWER (1) -------- (None) > --- PROPULSION (2) --- (None) > --- UTILITY (4) ------ Large Storage Unit ECM Suite > --- WEAPON (2) ------- (None) > --- INVENTORY (15) --- Cooling System Sensor Array Signal Interpreter Seismic Detector Targeting Computer ECM Suite ECM Suite Peak State ------------ > --- POWER ------------ Improved Ion Engine > --- PROPULSION ------- Wheel Wheel > --- UTILITY ---------- Small Storage Unit Large Storage Unit Targeting Computer ECM Suite > --- WEAPON ----------- Heavy Assault Rifle Mining Laser > --- INVENTORY -------- Light Ion Engine Wheel Wheel Cooling System Sensor Array Signal Interpreter Seismic Detector Targeting Computer ECM Suite ECM Suite Core Shielding Small Laser Light Assault Rifle Welding Torch [Rating: 12] Favorites ----------- Power Light Ion Engine Engine Light Ion Engine Propulsion Wheel Wheel Wheel Flight Unit Flight Unit Utility Small Storage Unit Device ECM Suite Storage Small Storage Unit Processor Targeting Computer Protection Core Shielding Weapon Light Assault Rifle Energy Gun Small Laser Ballistic Gun Light Assault Rifle Launcher Grenade Launcher Special Weapon Mining Laser Build | -11 -10 -10 -9 -9 -9 -8 ------- Run | Yrd Mat Min Mat Min Exi Min Slots Evolved 2 | . . . 2 . . . Power . | . . . . . . . Propulsion . | . . . . . . . Utility 2 | . . . 2 . . . Weapon . | . . . . . . . Parts Attached 29 | 5 6 1 10 . . 7 Power 6 | 1 2 . 1 . . 2 Engine 6 | 1 2 . 1 . . 2 Core . | . . . . . . . Reactor . | . . . . . . . Propulsion 7 | 1 1 . 4 . . 1 Treads . | . . . . . . . Leg . | . . . . . . . Wheel 6 | 1 1 . 4 . . . Hover . | . . . . . . . Flight 1 | . . . . . . 1 Utility 5 | 1 1 . 2 . . 1 Device 1 | . . . 1 . . . Storage 2 | 1 1 . . . . . Processor 1 | . . . 1 . . . Hackware . | . . . . . . . Protection 1 | . . . . . . 1 Artifact . | . . . . . . . Weapon 11 | 2 2 1 3 . . 3 Energy Gun 4 | 1 . 1 1 . . 1 Energy Cannon . | . . . . . . . Ballistic Gun 3 | 1 1 . 1 . . . Ballistic Cannon . | . . . . . . . Launcher 2 | . 1 . . . . 1 Special Weapon 2 | . . . 1 . . 1 Impact Weapon . | . . . . . . . Slashing Weapon . | . . . . . . . Piercing Weapon . | . . . . . . . Special Melee Weapon . | . . . . . . . Unidentified Prototypes . | . . . . . . . Parts Lost 21 | . 2 2 1 . . 16 Power 5 | . 1 1 . . . 3 Propulsion 5 | . . . . . . 5 Utility 3 | . . . . . . 3 Weapon 8 | . 1 1 1 . . 5 Highest Loss Streak 16 | . 1 2 1 . . 16 To Critical Strikes . | . . . . . . . Average Backups 10 | 1 6 13 13 15 15 9 Power 1 | . . 1 1 2 2 . Propulsion 1 | . 1 2 2 2 2 . Utility 5 | . 1 6 6 8 8 7 Weapon 1 | . 1 2 1 2 2 . Tool/Special . | . . . . . . . Unused Backups 10 | . . . 3 . . 7 Power 2 | . . . 2 . . . Propulsion 1 | . . . 1 . . . Utility 7 | . . . . . . 7 Weapon . | . . . . . . . Tool/Special . | . . . . . . . Average Slot Usage (%) 92 | . 91 100 99 100 100 68 Engine 11 | . 14 14 11 11 11 8 Wheel 20 | . 21 28 22 22 22 10 Device 7 | . . . 11 11 11 11 Storage 23 | . 26 28 22 22 22 21 Processor 6 | . . . 10 11 11 3 Energy Gun 7 | . 6 10 5 11 11 7 Ballistic Gun 10 | . 14 14 11 11 11 2 Launcher 2 | . 7 4 . . . . Special Weapon 2 | . . . 5 . . . Peak Build Rating 12 | 5 8 8 12 12 12 12 Average Rating 8 | 3 6 7 10 12 12 7 On Entrance 8 | . 5 8 8 12 12 12 Avg Prop Armor Cover (%) . | . . . . . . . Naked Turns . | . . . . . . . Heaviest Build 39 | 10 34 34 38 38 38 39 Greatest Support 32 | 16 32 32 32 20 20 20 Greatest Overweight (x) 10 | . 1 1 1 1 1 10 Average Overweight (x) . | . . . . 1 1 3 Largest Inventory Capacity 15 | 8 15 15 15 15 15 15 Average Capacity 14 | 7 14 15 15 15 15 15 Most Carried 15 | 3 14 15 15 15 15 15 Average Carried 10 | 1 6 13 13 14 15 9 Final Capacity 15 | 8 15 15 15 15 15 15 Final Carried 15 | 3 14 15 15 15 15 7 Class Distribution -------------------- 100% | Mutant Dominant Class ---------------- Mutant | -10/Materials Mutant | -10/Mines Mutant | -9/Materials Mutant | -9/Mines Mutant | -9/Exiles Mutant | -8/Mines Resources | -11 -10 -10 -9 -9 -9 -8 ----------- Run | Yrd Mat Min Mat Min Exi Min Matter Collected 596 | 250 62 62 124 55 . 43 Remotely . | . . . . . . . Salvage Created 478 | . 204 70 124 55 . 25 Parts 37 | . 9 12 8 6 . 2 Haulers Intercepted 1 | . 1 . . . . . Recyclers Shooed 3 | . 2 . 1 . . . Parts Field Recycled . | . . . . . . . Retrieved Matter . | . . . . . . . Parts Self-Destructed . | . . . . . . . Prevented . | . . . . . . . Parts Restored . | . . . . . . . Kills | -11 -10 -10 -9 -9 -9 -8 ------- Run | Yrd Mat Min Mat Min Exi Min Combat Hostiles Destroyed 18 | . 6 3 3 4 . 2 Guns 11 | . 1 2 3 4 . 1 AOE 7 | . 5 1 . . . 1 Classes Destroyed 4 | . 3 1 . . . . Builder 3 | . 1 2 . . . . Hauler 1 | . 1 . . . . . Swarmer 9 | . . 3 . 4 . 2 Grunt 9 | . 6 . 3 . . . Best Kill Streak 5 | . 5 4 3 4 . 1 Combat Bots Only 4 | . 4 3 3 4 . 1 Max Kills in Single Turn 2 | . 2 2 1 2 . 1 Gunslinging 1 | . . . . 1 . . Exploded 1 | . 1 1 . . . 1 Melee . | . . . . . . . Uniques/NPCs Destroyed . | . . . . . . . Combat | -11 -10 -10 -9 -9 -9 -8 -------- Run | Yrd Mat Min Mat Min Exi Min Hostile Shots Fired 186 | . 20 16 15 19 . 116 Missed 47 | . 7 8 3 2 . 27 Hits 139 | . 13 8 12 17 . 89 Projectile 139 | . 13 8 12 17 . 89 Critical Strikes 7 | . 1 . . . . 6 Damage Taken 1917 | . 268 104 130 143 . 1272 Core 467 | . 22 44 . 29 . 372 Absorbed by Shields . | . . . . . . . Redirected to Shielding 19 | . . . . . . 19 Core Remaining (%) 86 | 100 . 73 . . . . Volleys Fired 72 | . 17 12 21 6 . 16 Largest 2 | . 2 2 2 2 . 2 Hottest 100 | . 50 60 100 63 . 85 Shots Fired 108 | . 21 24 29 12 . 22 Gun 93 | . 15 22 22 12 . 22 Cannon . | . . . . . . . Launcher 8 | . 6 2 . . . . Special 7 | . . . 7 . . . Kinetic 50 | . 15 12 14 6 . 3 Thermal 37 | . . 10 15 6 . 6 Explosive 8 | . 6 2 . . . . Electromagnetic 13 | . . . . . . 13 Robot Hit Streak 12 | . 6 11 10 5 . 12 Robot Miss Streak 4 | . 1 2 1 3 . 4 Penetration Max . | . . . . . . . Secondary Targets 3 | . . 1 . 2 . . Max Gunslinging Chain 1 | . . 1 . 1 . . Shots Hit Robots 79 | . 18 17 17 8 . 19 Core Hits 35 | . 11 7 5 4 . 8 Critical Kills . | . . . . . . . Critical Parts Destroyed 1 | . 1 . . . . . Critical Strikes 1 | . 1 . . . . . Destroy 1 | . 1 . . . . . Melee Attacks . | . . . . . . . Impact . | . . . . . . . Slashing . | . . . . . . . Piercing . | . . . . . . . Sneak Attacks . | . . . . . . . Combat Hostiles . | . . . . . . . Follow-up Attacks . | . . . . . . . Damage Inflicted 1582 | . 617 306 239 100 . 320 Guns 930 | . 159 167 239 100 . 265 Cannons . | . . . . . . . Explosions 651 | . 458 139 . . . 54 Melee . | . . . . . . . Ramming 1 | . . . . . . 1 Kinetic 496 | . 159 67 186 44 . 40 Thermal 319 | . . 100 53 56 . 110 Explosive 597 | . 458 139 . . . . Electromagnetic 169 | . . . . . . 169 Impact . | . . . . . . . Slashing . | . . . . . . . Piercing . | . . . . . . . Highest Corruption . | . . . . . . . Average Corruption . | . . . . . . . Corruption Purged . | . . . . . . . Corruption Blocked . | . . . . . . . Overload Shots . | . . . . . . . Overflow Damage 20 | . 17 . . . . 3 Projectiles . | . . . . . . . Explosions 20 | . 17 . . . . 3 Melee . | . . . . . . . Knockbacks . | . . . . . . . Impact . | . . . . . . . Kinetic . | . . . . . . . Secondary . | . . . . . . . Self-Inflicted Damage 174 | . 104 40 . . . 30 Shots 4 | . 2 1 . . . 1 Rammed 2 | . . . . . . 2 Targets Rammed 2 | . . . . . . 2 Kicked . | . . . . . . . Crushed . | . . . . . . . Highest Temperature 158 | . 18 40 30 . . 158 Average Temperature 30 | . 9 15 12 . . 67 Received Heat Transfer 879 | . 114 . 72 . . 693 Siege Activations . | . . . . . . . Martial Activations . | . . . . . . . Shielding Activations . | . . . . . . . Robots Disrupted . | . . . . . . . Combat Hostiles . | . . . . . . . Robots Corrupted . | . . . . . . . Combat Hostiles . | . . . . . . . Parts Fried . | . . . . . . . Impact Corruptions . | . . . . . . . Robots Melted . | . . . . . . . Combat Hostiles . | . . . . . . . Parts Melted . | . . . . . . . Heat Transferred 650 | . . 225 125 125 . 175 Parts Sabotaged . | . . . . . . . Parts Stolen . | . . . . . . . Parts Stripped . | . . . . . . . Power Chain Reactions 1 | . . . . . . 1 Alert | -11 -10 -10 -9 -9 -9 -8 ------- Run | Yrd Mat Min Mat Min Exi Min Maximum Alert Level . | . . . . . . . Low Security (%) 100 | 100 100 100 100 100 . 100 Level 1 . | . . . . . . . Level 2 . | . . . . . . . Level 3 . | . . . . . . . Level 4 . | . . . . . . . Level 5 . | . . . . . . . High Security . | . . . . . . . Max Security . | . . . . . . . Peak Influence 182 | . 182 124 50 101 . 30 Initial 58 | . . 58 42 11 . . Average 38 | . 76 103 14 77 . 7 Influence Increases 666 | . 241 101 104 90 . 130 Destroy 0b10 Robot/C 360 | . 120 60 60 80 . 40 Destroy 0b10 Robot/NC 20 | . 10 10 . . . . Destroy Leader 62 | . 22 10 10 10 . 10 Successful Hack 24 | . 9 . 15 . . . Disable Machine 45 | . 30 . 15 . . . Destroy Structure 80 | . 50 21 4 . . 5 Lose Combat Pursuer 75 | . . . . . . 75 Influence Decreases 641 | . 89 144 183 49 71 105 Entered New Map 251 | . . 94 67 19 71 . Time Decay 275 | . 69 30 106 30 . 40 Lost Part 115 | . 20 20 10 . . 65 Squads Dispatched 1 | . . . 1 . . . Investigation 1 | . . . 1 . . . Extermination . | . . . . . . . Reinforcement . | . . . . . . . Assault . | . . . . . . . Garrison . | . . . . . . . Intercept . | . . . . . . . Searches Triggered . | . . . . . . . Construction Impeded . | . . . . . . . Haulers Reinforced . | . . . . . . . Active Scanning Responses . | . . . . . . . Cargo Convoy Interrupts . | . . . . . . . Stealth | -11 -10 -10 -9 -9 -9 -8 --------- Run | Yrd Mat Min Mat Min Exi Min Distress Signals . | . . . . . . . Communications Jammed . | . . . . . . . Distress Signals . | . . . . . . . Times Spotted 35 | . 8 3 3 4 . 17 Peak Tracking Total 5 | . 4 3 3 4 . 5 Tactical Retreats 5 | . . . . . . 5 ECM-based Alert Blocks 5 | . . . . . . 5 Traps | -11 -10 -10 -9 -9 -9 -8 ------- Run | Yrd Mat Min Mat Min Exi Min Traps Triggered . | . . . . . . . Indirectly . | . . . . . . . Trap Hack Attempts . | . . . . . . . Triggered . | . . . . . . . Disarmed . | . . . . . . . Reprogrammed . | . . . . . . . Reused . | . . . . . . . Traps Extracted . | . . . . . . . Installed . | . . . . . . . Triggered . | . . . . . . . Machines | -11 -10 -10 -9 -9 -9 -8 ---------- Run | Yrd Mat Min Mat Min Exi Min Machines Disabled 3 | . 2 . 1 . . . Max in Single Turn 1 | . 1 . 1 . . . Machines Repaired . | . . . . . . . Machines Dismantled . | . . . . . . . Machines Sabotaged . | . . . . . . . Overloaded Fab Kills . | . . . . . . . Hacking | -11 -10 -10 -9 -9 -9 -8 --------- Run | Yrd Mat Min Mat Min Exi Min Machines Accessed 3 | . 2 . 1 . . . Terminals 2 | . 1 . 1 . . . Fabricators . | . . . . . . . Repair Stations . | . . . . . . . Recycling Units 1 | . 1 . . . . . Scanalyzers . | . . . . . . . Garrison Access . | . . . . . . . Total Hacks 11 | . 8 . 3 . . . Successful 9 | . 6 . 3 . . . Failed 2 | . 2 . . . . . Catastrophic . | . . . . . . . Database Lockouts . | . . . . . . . Manual . | . . . . . . . Terminals 9 | . 6 . 3 . . . Fabricators . | . . . . . . . Repair Stations . | . . . . . . . Recycling Units 2 | . 2 . . . . . Scanalyzers . | . . . . . . . Garrison Access . | . . . . . . . Terminal Hacks 8 | . 5 . 3 . . . Record 4 | . 3 . 1 . . . Prototype ID Bank 1 | . 1 . . . . . Branch Access Points 1 | . . . 1 . . . Locate Traps 1 | . 1 . . . . . Dispatch Records 1 | . . . 1 . . . Fabricator Hacks . | . . . . . . . Repair Station Hacks . | . . . . . . . Recycling Unit Hacks 1 | . 1 . . . . . Retrieve Components 1 | . 1 . . . . . Scanalyzer . | . . . . . . . Garrison Access Hacks . | . . . . . . . Unauthorized Hacks . | . . . . . . . Terminals . | . . . . . . . Fabricators . | . . . . . . . Repair Stations . | . . . . . . . Recycling Units . | . . . . . . . Scanalyzers . | . . . . . . . Garrison Access . | . . . . . . . Data Cores Recovered . | . . . . . . . Used . | . . . . . . . Hacking Detections 3 | . 2 . 1 . . . Full Trace Events 2 | . 1 . 1 . . . Feedback Events . | . . . . . . . Feedback Blocked . | . . . . . . . Robot Schematics Acquired . | . . . . . . . Robots Built . | . . . . . . . Authchips . | . . . . . . . Time . | . . . . . . . Total Robot Build Rating . | . . . . . . . Part Schematics Acquired . | . . . . . . . Parts Built . | . . . . . . . Authchips . | . . . . . . . Time . | . . . . . . . Total Part Build Rating . | . . . . . . . Part Studies Acquired . | . . . . . . . Parts Repaired . | . . . . . . . Time . | . . . . . . . Parts Recycled . | . . . . . . . Recycled Matter . | . . . . . . . Retrieved Matter . | . . . . . . . Retrieved Components 3 | . 3 . . . . . Parts Scanalyzed . | . . . . . . . Part Schematics Acquired . | . . . . . . . Parts Damaged . | . . . . . . . Bothacking | -11 -10 -10 -9 -9 -9 -8 ------------ Run | Yrd Mat Min Mat Min Exi Min Used RIF Installer . | . . . . . . . Robots Hacked . | . . . . . . . Non-combat . | . . . . . . . Combat . | . . . . . . . Robot Hacks Applied . | . . . . . . . Relay Couplers Released . | . . . . . . . Fabnet Peak Effective % . | . . . . . . . Robots Rewired . | . . . . . . . Allies Hacked . | . . . . . . . Hacks Repelled . | . . . . . . . Allies | -11 -10 -10 -9 -9 -9 -8 -------- Run | Yrd Mat Min Mat Min Exi Min Total Allies . | . . . . . . . Largest Group . | . . . . . . . Highest-Rated Group . | . . . . . . . Highest-Rated Ally . | . . . . . . . Total Orders . | . . . . . . . Ally Attacks . | . . . . . . . Total Damage . | . . . . . . . Kills . | . . . . . . . Allies Corrupted . | . . . . . . . Allies Melted . | . . . . . . . Intel | -11 -10 -10 -9 -9 -9 -8 ------- Run | Yrd Mat Min Mat Min Exi Min Active Infowar (turns) 526 | . . . 347 79 28 72 ECM 526 | . . . 347 79 28 72 Robot Analysis Total . | . . . . . . . Derelict Logs Recovered . | . . . . . . . Drone Launches . | . . . . . . . Drone Recoveries . | . . . . . . . Exploration | -11 -10 -10 -9 -9 -9 -8 ------------- Run | Yrd Mat Min Mat Min Exi Min Turns Passed 914 | 45 206 64 347 79 28 145 Spaces Moved 535 | 36 130 25 203 61 30 50 Core 8 | 2 . . . . . 6 Treads . | . . . . . . . Legs . | . . . . . . . Wheels 527 | 34 130 25 203 61 30 44 Hover . | . . . . . . . Flight . | . . . . . . . Fastest Speed 50 | 50 100 100 95 95 95 95 Average Speed 105 | 97 110 104 96 95 95 159 Slowest Speed 550 | 100 115 115 100 95 95 550 Overloaded Moves . | . . . . . . . Propulsion Burnouts . | . . . . . . . Robots Hopped . | . . . . . . . Potential Cave-ins . | . . . . . . . Cave-ins Triggered . | . . . . . . . Exploration Rate (%) 11 | 3 25 7 15 17 8 7 Regions Visited 6 Branch Regions 4 Pre-discovered Areas . | . . . . . . . Known Exits Taken 1 | . . . 1 . . . Unknown Exits Taken 5 | 1 1 1 . 1 1 . Scrap Searched . | . . . . . . . Spaces Dug 4 | . . . 4 . . . Terrain Destroyed 87 | . 56 21 5 . . 5 Melee . | . . . . . . . Projectile 5 | . . . 5 . . . AOE 82 | . 56 21 . . . 5 Terrain Rammed . | . . . . . . . Walls Destroyed . | . . . . . . . Machines Disabled . | . . . . . . . Actions | -11 -10 -10 -9 -9 -9 -8 --------- Run | Yrd Mat Min Mat Min Exi Min Total 752 | 43 170 41 312 69 29 88 Wait 68 | . . . 57 . . 11 Move 529 | 35 129 24 202 60 29 50 Hop . | . . . . . . . Pick Up 31 | 3 14 3 10 1 . . Fast Attach 8 | 5 2 . . . . 1 Attach 16 | . 3 2 3 . . 8 Detach 1 | . 1 . . . . . Swap 13 | . 3 . 9 1 . . Drop 12 | . 1 . 10 1 . . Fire 72 | . 17 12 21 6 . 16 Melee . | . . . . . . . Ram 2 | . . . . . . 2 Kick . | . . . . . . . Crush . | . . . . . . . Escape Stasis . | . . . . . . . Rewire . | . . . . . . . Trap . | . . . . . . . Miscellaneous . | . . . . . . . Route ------- -11/Scrapyard -10/Materials -10/Mines -9/Materials (discovered 2 exits: *Min x2) -9/Mines -9/Exiles -8/Mines History --------- Turn | Location | Event 23 | -11/Scrapyard | Discovered new exit (range 15) 46 | -11/Scrapyard | Entered Materials 202 | -10/Materials | Discovered new exit (range 16) 252 | -10/Materials | Entered Mines 261 | -10/Mines | Discovered new exit (range 9) 314 | -10/Mines | Build established: Mutant 316 | -10/Mines | Entered Materials 316 | -9/Materials | Evolved 2 slots: Utility x2 534 | -9/Materials | Identified exit to Mines 663 | -9/Materials | Entered Mines 700 | -9/Mines | YI-UF0 nonchalantly dropped a Grenade Launcher on the ground 737 | -9/Mines | Deemed a non-threat by the Exiles lab entrance 737 | -9/Mines | Discovered new exit (range 5) 742 | -9/Mines | Entered Exiles 757 | -9/Exiles | Discovered new exit (range 15) 770 | -9/Exiles | Entered Mines 873 | -8/Mines | Core integrity fell below 50% 904 | -8/Mines | Core integrity fell below 20% 915 | -8/Mines | Destroyed by G-47 Trooper with Particle Gun Last Messages --------------- U-05 Engineer builds a Wall. Core Shielding destroyed. U-05 Engineer lays Concrete. Slammed into U-05 Engineer. Wheel destroyed. Slammed into U-05 Engineer. Critical hit (Burn: +37). R-06 Scavenger collects Lgt. Assault Rifle. Acquired 14 matter. Ion Engine destroyed. Critical hit (Burn: +37). Acquired Flight Unit. Flight Unit destroyed. G-50 Soldier misfires. G-47 Trooper misfires. G-47 Trooper suffers critical hit (Burn). K-01 Serf collects debris. Sml. Storage Unit destroyed. K-01 Serf collects debris. Critical hit (Burn: +37). Map ----- +----------------------------------------------------+ | | | | | | | | | | | | | ????????????????????????????????????????? | | ????????????????????????????????????????? | | ????????????????????????????????????????? | | ????????????????????????????????????????? | | ????????????????????????????????????????? | | ????????????????????????????????????????? | | ????????????????????????????????????????? | | ????????????????????#???????????????????? | | ???????????????????? ???????????????????? | | ???????????????????? ???????????????????? | | ??????????????????? #???????????????????? | | ??????????????????? #???????????????????? | | ??????????????????? ##??????????????????? | | ??????????????????? ???????????????????? | | ???####??????????? #???????????????????? | | ??## ##?????????? #???????????????????? | | ?## #?????????? #???????????????????? | | ?# #?????##### #???????????????????? | | ?# ##?????# % k #???????????????????? | | ?# [#??????#= @ r #???????????????????? | | ?# ######?#gg##%##???????????????????? | | ?# ## ### g#?*#????????????????????? | | ?## ## #? #????????????????????? | | ??## ## #? #????????????????????? | | ???#### ## #??#????????????????????? | | ??????## #???????????????????????? | | ???????## ######???????????????????????? | | ????????########????????????????????????? | | ????????????????????????????????????????? | | ????????????????????????????????????????? | | ????????????????????????????????????????? | | ????????????????????????????????????????? | | ????????????????????????????????????????? | | ????????????????????????????????????????? | | ????????????????????????????????????????? | | ????????????????????????????????????????? | | ????????????????????????????????????????? | | ????????????????????????????????????????? | | ????????????????????????????????????????? | | ????????????????????????????????????????? | | ????????????????????????????????????????? | | ????????????????????????????????????????? | | ????????????????????????????????????????? | | ????????????????????????????????????????? | +----------------------------------------------------+ Best States ------------- Heat Dissipation 28 Energy Generation 12 Energy Capacity 265 Matter Stores 300 Matter Capacity 300 Sight Range 16 Terrain Scan Density 10 ECM Strength 1 Core Shielding 20 Evasion (%) 41 Targeting Accuracy 5 Item Schematics ----------------- None Robot Schematics ------------------ None Fabricated ------------ Nothing Repaired ---------- Nothing Studied --------- None Alien Tech Used ----------------- None Achievements -------------- None Challenges ------------ None Game ------ Seed DroneGodOptics Manual? 0 Play Time 00:22:51 Cumulative 11.7 hours Start 2026.08.14 @ 02:18:52 End 2026.08.14 @ 02:39:30 Sessions 1 Manual Loads 0 Difficulty Rogue Special Mode None Game No. 29 Rogue 29 Adventurer 0 Explorer 0 Win Type - Total 0 Types 0/0/0/0/0/0/0/0/0/0 Lore% 6 Gallery% 14 Achievement% 12 Wizard Run 0 Options --------- Layout 1 ASCII 0 Keyboard 0 Movement Mouse Keybinds 0 Fullscreen 1 Font 32/SmallcapsGlow Map View 50x35 Zoom Use 0% Tactical HUD 0 Map Filters NONE Filters NONE Steam 1 RUN: 7197c107-3314-4101-8ad2-29583ef31458